Cogmind - Beta 14 @@@ ROGUE MODE // 2024.08.13 @ 13:28:49 Player: Calasmeer Result: Destroyed by YB-7TJ(R) with Subdweller Laser Performance ------------- Evolutions (0) 0 Regions Visited (2) 400 Robots Destroyed (13) 65 Value Destroyed (488) 488 Prototype IDs (0) 0 Alien Tech Used (0) 0 Bonus (0) 0 TOTAL SCORE: 953 Bonus ------- None Cogmind --------- Core Integrity 0/250 Matter 300/300 Energy 100/100 System Corruption 0% Temperature Cool (6) Movement Core (150) Ox2 Location -10/Subcaves Parts ------- > --- POWER (1) -------- (None) > --- PROPULSION (2) --- (None) > --- UTILITY (2) ------ Small Storage Unit > --- WEAPON (2) ------- Makeshift Hammer > --- INVENTORY (8) ---- Subdweller Power Source Subdweller Monowheel Scrap Shield Subdweller Laser Subdweller Laser Light Assault Rifle Peak State ------------ > --- POWER ------------ Light Nuclear Core > --- PROPULSION ------- Wheel Subdweller Monowheel > --- UTILITY ---------- Small Storage Unit Makeshift Light Armor Plating > --- WEAPON ----------- Barrage Gun Makeshift Hammer > --- INVENTORY -------- Subdweller Power Source Subdweller Monowheel Scrap Shield Subdweller Laser Subdweller Laser Light Assault Rifle [Rating: 19] Favorites ----------- Power Light Ion Engine Engine Light Ion Engine Power Core Light Nuclear Core Propulsion Wheel Wheel Wheel Utility Small Storage Unit Storage Small Storage Unit Protection Makeshift Light Armor Plating Weapon Assault Rifle Energy Gun Medium Laser Ballistic Gun Assault Rifle Launcher Grenade Launcher Impact Weapon Makeshift Hammer Build | -11 -10 -10 ------- Run | Yrd Mat Sub Slots Evolved . | . . . Power . | . . . Propulsion . | . . . Utility . | . . . Weapon . | . . . Parts Attached 17 | 6 . 11 Power 3 | 1 . 2 Engine 2 | 1 . 1 Core 1 | . . 1 Reactor . | . . . Propulsion 5 | 2 . 3 Treads . | . . . Leg . | . . . Wheel 5 | 2 . 3 Hover . | . . . Flight . | . . . Utility 3 | 1 . 2 Device . | . . . Storage 1 | 1 . . Processor . | . . . Hackware . | . . . Protection 2 | . . 2 Artifact . | . . . Weapon 6 | 2 . 4 Energy Gun 1 | 1 . . Energy Cannon . | . . . Ballistic Gun 3 | 1 . 2 Ballistic Cannon . | . . . Launcher 1 | . . 1 Special Weapon . | . . . Impact Weapon 1 | . . 1 Slashing Weapon . | . . . Piercing Weapon . | . . . Special Melee Weapon . | . . . Unidentified Prototypes . | . . . Parts Lost 11 | . . 11 Power 3 | . . 3 Propulsion 4 | . . 4 Utility 1 | . . 1 Weapon 3 | . . 3 Highest Loss Streak 3 | . . 3 To Critical Strikes . | . . . Average Slot Usage (%) 86 | . 85 88 Engine 10 | . 14 7 Core 2 | . . 4 Wheel 25 | . 28 24 Storage 14 | . 14 14 Protection 5 | . . 9 Energy Gun 5 | . 14 . Ballistic Gun 13 | . 14 12 Launcher 2 | . . 4 Impact Weapon 5 | . . 8 Peak Build Rating 19 | 6 6 19 Average Rating 10 | 4 6 12 On Entrance 4 | . 6 6 Naked Turns . | . . . Heaviest Build 20 | 12 12 20 Greatest Support 30 | 20 20 30 Greatest Overweight (x) 2 | . . 2 Average Overweight (x) . | . . . Largest Inventory Capacity 8 | 8 8 8 Average Capacity 7 | 6 8 8 Most Carried 8 | 2 5 8 Average Carried 6 | 1 4 7 Final Capacity 8 | 8 8 8 Final Carried 7 | 2 5 7 Class Distribution -------------------- 100% | Mutant Dominant Class ---------------- Mutant | -10/Materials Mutant | -10/Subcaves Resources | -11 -10 -10 ----------- Run | Yrd Mat Sub Matter Collected 503 | 157 80 266 Remotely . | . . . Salvage Created 440 | . 80 360 Parts 15 | . 2 13 Haulers Intercepted . | . . . Recyclers Shooed . | . . . Parts Field Recycled . | . . . Retrieved Matter . | . . . Parts Self-Destructed . | . . . Prevented . | . . . Kills | -11 -10 -10 ------- Run | Yrd Mat Sub Combat Hostiles Destroyed 12 | . 1 11 Melee 3 | . . 3 Guns 2 | . 1 1 AOE 4 | . . 4 Classes Destroyed 4 | . 2 2 Worker 1 | . 1 . Grunt 1 | . 1 . Artisan 1 | . . 1 Subdweller 11 | . . 11 Best Kill Streak 2 | . 2 2 Combat Bots Only 2 | . 1 2 Max Kills in Single Turn 1 | . 1 1 Gunslinging . | . . . Exploded 1 | . . 1 Melee 1 | . . 1 Uniques/NPCs Destroyed . | . . . Combat | -11 -10 -10 -------- Run | Yrd Mat Sub Hostile Shots Fired 72 | . 10 62 Missed 14 | . . 14 Damage Taken 1276 | . 142 1134 Core 264 | . 48 216 Absorbed by Shields . | . . . Core Remaining (%) 100 | 100 . . Volleys Fired 20 | . 7 13 Largest 2 | . 2 2 Hottest 80 | . 70 80 Shots Fired 39 | . 14 25 Gun 27 | . 14 13 Cannon . | . . . Launcher 12 | . . 12 Special . | . . . Kinetic 11 | . 7 4 Thermal 16 | . 7 9 Explosive 12 | . . 12 Electromagnetic . | . . . Robot Hit Streak 11 | . 4 11 Robot Miss Streak 1 | . 1 1 Penetration Max . | . . . Secondary Targets . | . . . Shots Hit Robots 52 | . 11 41 Core Hits 15 | . 4 11 Critical Kills . | . . . Critical Parts Destroyed 2 | . . 2 Critical Strikes 4 | . 1 3 Burn 1 | . 1 . Smash 3 | . . 3 Melee Attacks 81 | . . 81 Impact 81 | . . 81 Slashing . | . . . Piercing . | . . . Sneak Attacks 1 | . . 1 Combat Hostiles . | . . . Follow-up Attacks . | . . . Damage Inflicted 1926 | . 135 1791 Guns 219 | . 135 84 Cannons . | . . . Explosions 581 | . . 581 Melee 1126 | . . 1126 Ramming . | . . . Kinetic 83 | . 61 22 Thermal 136 | . 74 62 Explosive 581 | . . 581 Electromagnetic . | . . . Impact 1126 | . . 1126 Slashing . | . . . Piercing . | . . . Highest Corruption . | . . . Average Corruption . | . . . Corruption Purged . | . . . Corruption Blocked . | . . . Overload Shots . | . . . Overflow Damage 223 | . . 223 Projectiles . | . . . Explosions 2 | . . 2 Melee 221 | . . 221 Knockbacks 5 | . . 5 Impact 5 | . . 5 Kinetic . | . . . Secondary . | . . . Self-Inflicted Damage 38 | . . 38 Shots 2 | . . 2 Rammed . | . . . Targets Rammed . | . . . Kicked . | . . . Crushed . | . . . Highest Temperature 126 | . 126 . Average Temperature 58 | . 58 . Received Heat Transfer 186 | . 72 114 Siege Activations . | . . . Robots Corrupted 3 | . . 3 Combat Hostiles 3 | . . 3 Parts Fried 4 | . . 4 Impact Corruptions 10 | . . 10 Robots Melted . | . . . Combat Hostiles . | . . . Parts Melted 1 | . 1 . Heat Transferred 481 | . 296 185 Parts Sabotaged . | . . . Parts Stolen . | . . . Parts Stripped . | . . . Power Chain Reactions . | . . . Alert | -11 -10 -10 ------- Run | Yrd Mat Sub Peak Influence 61 | . 61 . Initial . | . . . Average 28 | . 30 . Maximum Alert Level . | . . . Low Security (%) 100 | 100 100 . Level 1 . | . . . Level 2 . | . . . Level 3 . | . . . Level 4 . | . . . Level 5 . | . . . High Security . | . . . Max Security . | . . . Squads Dispatched . | . . . Investigation . | . . . Extermination . | . . . Reinforcement . | . . . Assault . | . . . Garrison . | . . . Intercept . | . . . Searches Triggered . | . . . Construction Impeded . | . . . Haulers Reinforced . | . . . Active Scanning Responses . | . . . Cargo Convoy Interrupts . | . . . Stealth | -11 -10 -10 --------- Run | Yrd Mat Sub Distress Signals . | . . . Communications Jammed . | . . . Distress Signals . | . . . Times Spotted 22 | . 4 18 Peak Tracking Total 6 | . 3 6 Tactical Retreats 1 | . 1 . Traps | -11 -10 -10 ------- Run | Yrd Mat Sub Traps Triggered 2 | . . 2 Indirectly . | . . . Trap Hack Attempts . | . . . Triggered . | . . . Disarmed . | . . . Reprogrammed . | . . . Reused . | . . . Traps Extracted . | . . . Installed . | . . . Triggered . | . . . Machines | -11 -10 -10 ---------- Run | Yrd Mat Sub Machines Disabled . | . . . Max in Single Turn . | . . . Machines Repaired . | . . . Machines Dismantled . | . . . Machines Sabotaged . | . . . Overloaded Fab Kills . | . . . Hacking | -11 -10 -10 --------- Run | Yrd Mat Sub Machines Accessed 2 | . 2 . Terminals 2 | . 2 . Fabricators . | . . . Repair Stations . | . . . Recycling Units . | . . . Scanalyzers . | . . . Garrison Access . | . . . Total Hacks 4 | . 4 . Successful 4 | . 4 . Failed . | . . . Catastrophic . | . . . Database Lockouts . | . . . Manual 4 | . 4 . Terminals 4 | . 4 . Fabricators . | . . . Repair Stations . | . . . Recycling Units . | . . . Scanalyzers . | . . . Garrison Access . | . . . Terminal Hacks 2 | . 2 . Emergency Access Points 1 | . 1 . Locate Traps 1 | . 1 . Fabricator Hacks . | . . . Repair Station Hacks . | . . . Recycling Unit Hacks . | . . . Scanalyzer . | . . . Garrison Access Hacks . | . . . Unauthorized Hacks 2 | . 2 . Terminals 2 | . 2 . Botnet 2 | . 2 . Fabricators . | . . . Repair Stations . | . . . Recycling Units . | . . . Scanalyzers . | . . . Garrison Access . | . . . Data Cores Recovered . | . . . Used . | . . . Hacking Detections 1 | . 1 . Full Trace Events . | . . . Feedback Events . | . . . Feedback Blocked . | . . . Robot Schematics Acquired . | . . . Robots Built . | . . . Authchips . | . . . Time . | . . . Total Robot Build Rating . | . . . Part Schematics Acquired . | . . . Parts Built . | . . . Authchips . | . . . Time . | . . . Total Part Build Rating . | . . . Parts Repaired . | . . . Time . | . . . Parts Recycled . | . . . Recycled Matter . | . . . Retrieved Matter . | . . . Retrieved Components . | . . . Parts Scanalyzed . | . . . Part Schematics Acquired . | . . . Parts Damaged . | . . . Bothacking | -11 -10 -10 ------------ Run | Yrd Mat Sub Used RIF Installer . | . . . Robots Hacked . | . . . Non-combat . | . . . Combat . | . . . Robot Hacks Applied . | . . . Relay Couplers Released . | . . . Fabnet Peak Effective % . | . . . Robots Rewired . | . . . Allies Hacked . | . . . Hacks Repelled . | . . . Allies | -11 -10 -10 -------- Run | Yrd Mat Sub Total Allies . | . . . Largest Group . | . . . Highest-Rated Group . | . . . Highest-Rated Ally . | . . . Total Orders . | . . . Ally Attacks . | . . . Total Damage . | . . . Kills . | . . . Allies Corrupted . | . . . Allies Melted . | . . . Intel | -11 -10 -10 ------- Run | Yrd Mat Sub Robot Analysis Total . | . . . Derelict Logs Recovered . | . . . Drone Launches . | . . . Drone Recoveries . | . . . Exploration | -11 -10 -10 ------------- Run | Yrd Mat Sub Turns Passed 1688 | 41 624 1023 Spaces Moved 1045 | 38 238 769 Core 2 | 1 . 1 Treads . | . . . Legs . | . . . Wheels 1043 | 37 238 768 Hover . | . . . Flight . | . . . Fastest Speed 50 | 50 80 80 Average Speed 85 | 79 80 87 Slowest Speed 150 | 80 80 150 Overloaded Moves . | . . . Propulsion Burnouts . | . . . Robots Hopped . | . . . Cave-ins Triggered . | . . . Exploration Rate (%) 27 | 3 37 42 Regions Visited 2 Branch Regions 1 Pre-discovered Areas . | . . . Known Exits Taken . | . . . Unknown Exits Taken 2 | 1 1 . Scrap Searched 11 | . . 11 Spaces Dug 5 | . . 5 Terrain Destroyed 59 | . . 59 Melee 5 | . . 5 Projectile . | . . . AOE 54 | . . 54 Terrain Rammed . | . . . Walls Destroyed . | . . . Machines Disabled . | . . . Actions | -11 -10 -10 --------- Run | Yrd Mat Sub Total 1713 | 45 657 1011 Wait 537 | . 410 127 Move 1043 | 37 237 769 Hop . | . . . Pick Up 12 | 2 3 7 Fast Attach 9 | 6 . 3 Attach 4 | . . 4 Detach . | . . . Swap 4 | . . 4 Drop 3 | . . 3 Fire 20 | . 7 13 Melee 81 | . . 81 Ram . | . . . Kick . | . . . Crush . | . . . Escape Stasis . | . . . Rewire . | . . . Trap . | . . . Miscellaneous . | . . . Route ------- -11/Scrapyard -10/Materials (discovered 2 exits: [*Mat] / [*Sub]) -10/Subcaves (discovered 1 exit: [*Mat]) History --------- Turn | Location | Event 16 | -11/Scrapyard | Discovered new exit (range 15) 42 | -11/Scrapyard | Entered Materials 164 | -10/Materials | Discovered new exit (range 3) 309 | -10/Materials | Build established: Mutant 652 | -10/Materials | Discovered new exit (range 6) 666 | -10/Materials | Entered Subcaves 697 | -10/Subcaves | Shifting Twisted Machinery released Sub. Power Source 986 | -10/Subcaves | Disturbed a concealed Subdweller 1083 | -10/Subcaves | A swath of the cavern ceiling suddenly collapsed 1152 | -10/Subcaves | Disturbed a concealed Subdweller 1480 | -10/Subcaves | A swath of the cavern ceiling suddenly collapsed 1526 | -10/Subcaves | Shifting Twisted Machinery released Shrapnel Trap 1577 | -10/Subcaves | Shifting Twisted Machinery released Battle Cannon 1586 | -10/Subcaves | Core integrity fell below 50% 1600 | -10/Subcaves | Core integrity fell below 20% 1667 | -10/Subcaves | Discovered new exit (range 11) 1689 | -10/Subcaves | Destroyed by YB-7TJ(R) with Subdweller Laser Last Messages --------------- effect. 01608_ Sub. Optics fried. 01608_ Disposable Heat Sink fried. 01608_ U2-M6H(R) destroyed. 01616_ Critical hit (Destroy). 01617_ Destroyed Sub. Optics. 01617_ 6W-URJ(R) system corrupted by crushing effect. 01617_ 6W-URJ(R) knocked back. 01618_ Barrage Gun destroyed. 01626_ 6W-URJ(R) suffers critical hit (Smash). 01626_ Destroyed Sub. Monowheel. 01626_ 6W-URJ(R) system corrupted by crushing effect. 01627_ 6W-URJ(R) system terminally corrupted. 01627_ Disposable Heat Sink fried. 01667_ EXIT=FOUND 01681_ Wheel destroyed. 01682_ Mak. Light Armor Plating destroyed. 01687_ Sub. Monowheel destroyed. Map ----- +----------------------------------------------------+ | ?????????????????????????????????????????????????? | | ?????????????????????????????????????????????????? | | ?????????????????????????????????????????????????? | | ?????????????????????????????????????????????????? | | ?????????????????????????????????????????????????? | | ?????????????????????????????????????????????????? | | ?????????????????????????????????????????????????? | | ?????????????????????????????????????????????????? | | ?????????????????????????????????????????????????? | | ?????????????????????????????????????????????????? | | ?????????????????????????????????????????????????? | | ?????????????????????????????????????????????????? | | ?????????????????????????????????????????????????? | | ?????????????????????????????????????????????????? | | ?????????????##??????????????????????????????????? | | ?????????????# ?????????????????????????????????? | | ?????????????# #????????????????????????????????? | | ????? ???????# ????????????????????????????????? | | ????? "???????# #???????????????????????????????? | | ????? ??????## ####???????????????????????????? | | ????? ?????# ##??????????????????????????? | | ?????